Cogmind - Beta 13 @@@ ROGUE MODE // 2024.06.18 @ 23:37:59 Player: celerysam Result: Destroyed by Y-45 Defender with Beam Rifle Performance ------------- Evolutions (2) 1000 Regions Visited (3) 600 Robots Destroyed (9) 45 Value Destroyed (231) 231 Prototype IDs (1) 20 Alien Tech Used (0) 0 Bonus (200) 200 TOTAL SCORE: 2096 Bonus ------- Pacifist 200 Cogmind --------- Core Integrity 0/550 Matter 220/300 Energy 33/100 System Corruption 0% Temperature Cool (9) Movement Flying (109) Ox1 Location -8/Materials Parts ------- > --- POWER (1) -------- (None) > --- PROPULSION (4) --- Improved Flight Unit Cesium-ion Thruster Cesium-ion Thruster > --- UTILITY (4) ------ Small Storage Unit Particle Charger Hardlight Generator > --- WEAPON (2) ------- Mini Grenade Launcher > --- INVENTORY (8) ---- Armored Treads Improved Signal Interpreter Hardlight Generator Flak Cannon Flak Cannon Mining Claw Peak State ------------ > --- POWER ------------ (None) > --- PROPULSION ------- Improved Flight Unit Cesium-ion Thruster Cesium-ion Thruster Cesium-ion Thruster > --- UTILITY ---------- Small Storage Unit Compact Battery Particle Charger Hardlight Generator > --- WEAPON ----------- Flak Cannon Mini Grenade Launcher > --- INVENTORY -------- Armored Treads Improved Signal Interpreter Hardlight Generator Flak Cannon Mining Claw [Rating: 28] Favorites ----------- Power Light Ion Engine Engine Light Ion Engine Propulsion Flight Unit Treads Armored Treads Wheel Wheel Flight Unit Flight Unit Utility Small Storage Unit Device Heat Sink Storage Small Storage Unit Protection Improved Utility Shielding Weapon EM Pulse Gun Energy Gun EM Pulse Gun Ballistic Gun Light Assault Rifle Ballistic Cannon Improved Light Cannon Launcher Mini Grenade Launcher Impact Weapon Mace Build | -11 -10 -9 -8 ------- Run | Yrd Mat Mat Mat Slots Evolved 4 | . . 2 2 Power . | . . . . Propulsion 2 | . . 1 1 Utility 2 | . . 1 1 Weapon . | . . . . Parts Attached 40 | 6 . 10 24 Power 6 | 1 . 3 2 Engine 6 | 1 . 3 2 Core . | . . . . Reactor . | . . . . Propulsion 21 | 2 . 5 14 Treads 5 | . . . 5 Leg . | . . . . Wheel 2 | 2 . . . Hover . | . . . . Flight 14 | . . 5 9 Utility 6 | 1 . 1 4 Device 3 | . . 1 2 Storage 2 | 1 . . 1 Processor . | . . . . Hackware . | . . . . Protection 1 | . . . 1 Artifact . | . . . . Weapon 7 | 2 . 1 4 Energy Gun 2 | 1 . . 1 Energy Cannon . | . . . . Ballistic Gun 1 | 1 . . . Ballistic Cannon 2 | . . . 2 Launcher 1 | . . . 1 Special Weapon . | . . . . Impact Weapon 1 | . . 1 . Slashing Weapon . | . . . . Piercing Weapon . | . . . . Special Melee Weapon . | . . . . Unidentified Prototypes 1 | . . . 1 Parts Lost 23 | . . 1 22 Power 3 | . . . 3 Propulsion 14 | . . 1 13 Utility 3 | . . . 3 Weapon 3 | . . . 3 Highest Loss Streak 16 | . . 1 16 To Critical Strikes . | . . . . Average Slot Usage (%) 77 | . 85 81 72 Engine 8 | . 14 11 4 Treads 8 | . . . 17 Wheel 4 | . 28 5 . Flight 17 | . . 25 14 Device 7 | . . 11 6 Storage 12 | . 14 11 13 Protection 2 | . . . 5 Energy Gun 5 | . 14 9 . Ballistic Gun 4 | . 14 7 . Ballistic Cannon 1 | . . . 2 Impact Weapon 3 | . . 1 6 Naked Turns . | . . . . Heaviest Build 17 | 13 13 14 17 Greatest Support 80 | 26 26 26 80 Greatest Overweight (x) 1 | . . 1 1 Average Overweight (x) . | . . . . Largest Inventory Capacity 8 | 8 8 8 8 Average Capacity 7 | 7 8 8 8 Most Carried 8 | 8 8 8 8 Average Carried 6 | 3 7 7 5 Final Capacity 8 | 8 8 8 8 Final Carried 8 | 6 8 7 6 Class Distribution -------------------- 95% | Mutant 4% | Scavenger-Sprinter Dominant Class ---------------- Mutant | -10/Materials Mutant | -9/Materials Mutant | -8/Materials Resources | -11 -10 -9 -8 ----------- Run | Yrd Mat Mat Mat Matter Collected 458 | 260 . 98 100 Remotely . | . . . . Salvage Created 243 | . . 105 138 Parts 15 | . . 12 3 Haulers Intercepted . | . . . . Recyclers Shooed . | . . . . Parts Field Recycled . | . . . . Retrieved Matter . | . . . . Parts Self-Destructed . | . . . . Prevented . | . . . . Kills | -11 -10 -9 -8 ------- Run | Yrd Mat Mat Mat Combat Hostiles Destroyed 9 | . . 5 4 Melee 3 | . . 1 2 Guns 4 | . . 4 . Cannons 1 | . . . 1 Classes Destroyed 3 | . . 2 1 Swarmer 5 | . . 4 1 Grunt 2 | . . 1 1 Sentry 2 | . . . 2 Best Kill Streak 3 | . . 3 1 Combat Bots Only 3 | . . 3 1 Max Kills in Single Turn 1 | . . 1 1 Gunslinging . | . . . . Exploded . | . . . . Melee 1 | . . 1 1 Uniques/NPCs Destroyed . | . . . . Combat | -11 -10 -9 -8 -------- Run | Yrd Mat Mat Mat Hostile Shots Fired 350 | . . 27 323 Missed 121 | . . 10 111 Damage Taken 3078 | . . 165 2913 Core 624 | . . 70 554 Absorbed by Shields . | . . . . Redirected to Shielding 104 | . . . 104 Core Remaining (%) 94 | 100 100 82 . Volleys Fired 14 | . . 8 6 Largest 2 | . . 2 1 Hottest 60 | . . 60 40 Shots Fired 22 | . . 16 6 Gun 17 | . . 16 1 Cannon 5 | . . . 5 Launcher . | . . . . Special . | . . . . Kinetic 13 | . . 8 5 Thermal . | . . . . Explosive . | . . . . Electromagnetic 9 | . . 8 1 Robot Hit Streak 4 | . . 2 4 Robot Miss Streak 3 | . . 3 1 Penetration Max . | . . . . Secondary Targets 1 | . . 1 . Max Gunslinging Chain 1 | . . 1 . Shots Hit Robots 20 | . . 7 13 Core Hits 10 | . . 6 4 Critical Kills 1 | . . . 1 Critical Parts Destroyed 4 | . . . 4 Critical Strikes 5 | . . . 5 Smash 5 | . . . 5 Melee Attacks 11 | . . 1 10 Impact 11 | . . 1 10 Slashing . | . . . . Piercing . | . . . . Sneak Attacks . | . . . . Combat Hostiles . | . . . . Follow-up Attacks . | . . . . Damage Inflicted 411 | . . 100 311 Guns 58 | . . 58 . Cannons 85 | . . . 85 Explosions . | . . . . Melee 268 | . . 42 226 Ramming . | . . . . Kinetic 99 | . . 14 85 Thermal . | . . . . Explosive . | . . . . Electromagnetic 44 | . . 44 . Impact 268 | . . 42 226 Slashing . | . . . . Piercing . | . . . . Highest Corruption . | . . . . Average Corruption . | . . . . Corruption Purged . | . . . . Corruption Blocked . | . . . . Overload Shots . | . . . . Overflow Damage 83 | . . . 83 Projectiles . | . . . . Explosions . | . . . . Melee 83 | . . . 83 Knockbacks 3 | . . . 3 Impact 2 | . . . 2 Kinetic 1 | . . . 1 Secondary . | . . . . Self-Inflicted Damage . | . . . . Shots . | . . . . Rammed . | . . . . Targets Rammed . | . . . . Kicked . | . . . . Crushed . | . . . . Highest Temperature 30 | . . 9 30 Average Temperature 11 | . . 4 13 Received Heat Transfer 1134 | . . 51 1083 Siege Activations . | . . . . Robots Corrupted . | . . . . Combat Hostiles . | . . . . Parts Fried 4 | . . . 4 Impact Corruptions 4 | . . . 4 Robots Melted . | . . . . Combat Hostiles . | . . . . Parts Melted . | . . . . Heat Transferred . | . . . . Parts Sabotaged . | . . . . Parts Stolen . | . . . . Parts Stripped . | . . . . Power Chain Reactions . | . . . . Alert | -11 -10 -9 -8 ------- Run | Yrd Mat Mat Mat Peak Influence 332 | . . 325 332 Initial 137 | . . . 137 Average 183 | . . 165 269 Maximum Alert Level 1 | . . 1 1 Low Security (%) 44 | 100 100 64 7 Level 1 55 | . . 35 92 Level 2 . | . . . . Level 3 . | . . . . Level 4 . | . . . . Level 5 . | . . . . High Security . | . . . . Max Security . | . . . . Squads Dispatched 3 | . . 1 2 Investigation . | . . . . Extermination . | . . . . Reinforcement 3 | . . 1 2 Assault . | . . . . Garrison . | . . . . Intercept . | . . . . Searches Triggered . | . . . . Construction Impeded . | . . . . Haulers Reinforced . | . . . . Active Scanning Responses . | . . . . Cargo Convoy Interrupts . | . . . . Stealth | -11 -10 -9 -8 --------- Run | Yrd Mat Mat Mat Distress Signals 4 | . . . 4 Communications Jammed . | . . . . Distress Signals . | . . . . Times Spotted 45 | . . 21 24 Peak Tracking Total 17 | . . 7 17 Tactical Retreats 7 | . . 3 4 Traps | -11 -10 -9 -8 ------- Run | Yrd Mat Mat Mat Traps Triggered . | . . . . Indirectly . | . . . . Trap Hack Attempts . | . . . . Triggered . | . . . . Disarmed . | . . . . Reprogrammed . | . . . . Reused . | . . . . Traps Extracted . | . . . . Installed . | . . . . Triggered . | . . . . Machines | -11 -10 -9 -8 ---------- Run | Yrd Mat Mat Mat Machines Disabled 1 | . . 1 . Max in Single Turn 1 | . . 1 . Machines Repaired . | . . . . Machines Dismantled . | . . . . Machines Sabotaged . | . . . . Overloaded Fab Kills . | . . . . Hacking | -11 -10 -9 -8 --------- Run | Yrd Mat Mat Mat Machines Accessed . | . . . . Terminals . | . . . . Fabricators . | . . . . Repair Stations . | . . . . Recycling Units . | . . . . Scanalyzers . | . . . . Garrison Access . | . . . . Total Hacks . | . . . . Successful . | . . . . Failed . | . . . . Catastrophic . | . . . . Database Lockouts . | . . . . Manual . | . . . . Terminals . | . . . . Fabricators . | . . . . Repair Stations . | . . . . Recycling Units . | . . . . Scanalyzers . | . . . . Garrison Access . | . . . . Terminal Hacks . | . . . . Fabricator Hacks . | . . . . Repair Station Hacks . | . . . . Recycling Unit Hacks . | . . . . Scanalyzer . | . . . . Garrison Access Hacks . | . . . . Unauthorized Hacks . | . . . . Terminals . | . . . . Fabricators . | . . . . Repair Stations . | . . . . Recycling Units . | . . . . Scanalyzers . | . . . . Garrison Access . | . . . . Data Cores Recovered . | . . . . Used . | . . . . Hacking Detections . | . . . . Full Trace Events . | . . . . Feedback Events . | . . . . Feedback Blocked . | . . . . Robot Schematics Acquired . | . . . . Robots Built . | . . . . Authchips . | . . . . Time . | . . . . Total Robot Build Rating . | . . . . Part Schematics Acquired . | . . . . Parts Built . | . . . . Authchips . | . . . . Time . | . . . . Total Part Build Rating . | . . . . Parts Repaired . | . . . . Time . | . . . . Parts Recycled . | . . . . Recycled Matter . | . . . . Retrieved Matter . | . . . . Retrieved Components . | . . . . Parts Scanalyzed . | . . . . Part Schematics Acquired . | . . . . Parts Damaged . | . . . . Bothacking | -11 -10 -9 -8 ------------ Run | Yrd Mat Mat Mat Used RIF Installer . | . . . . Robots Hacked . | . . . . Non-combat . | . . . . Combat . | . . . . Robot Hacks Applied . | . . . . Relay Couplers Released . | . . . . Fabnet Peak Effective % . | . . . . Robots Rewired . | . . . . Allies Hacked . | . . . . Hacks Repelled . | . . . . Allies | -11 -10 -9 -8 -------- Run | Yrd Mat Mat Mat Total Allies . | . . . . Largest Group . | . . . . Highest-Rated Group . | . . . . Highest-Rated Ally . | . . . . Total Orders . | . . . . Ally Attacks . | . . . . Total Damage . | . . . . Kills . | . . . . Allies Corrupted . | . . . . Allies Melted . | . . . . Intel | -11 -10 -9 -8 ------- Run | Yrd Mat Mat Mat Robot Analysis Total . | . . . . Derelict Logs Recovered . | . . . . Drone Launches . | . . . . Drone Recoveries . | . . . . Exploration | -11 -10 -9 -8 ------------- Run | Yrd Mat Mat Mat Turns Passed 636 | 52 61 236 287 Spaces Moved 831 | 40 66 417 308 Core 4 | 4 . . . Treads 64 | . . . 64 Legs . | . . . . Wheels 143 | 36 66 41 . Hover . | . . . . Flight 620 | . . 376 244 Fastest Speed 27 | 50 90 34 27 Average Speed 53 | 86 90 40 60 Slowest Speed 170 | 90 90 122 170 Overloaded Moves . | . . . . Propulsion Burnouts . | . . . . Robots Hopped 2 | . . 1 1 Cave-ins Triggered . | . . . . Exploration Rate (%) 24 | 4 19 40 36 Regions Visited 3 Branch Regions . Pre-discovered Areas . | . . . . Known Exits Taken . | . . . . Unknown Exits Taken 3 | 1 1 1 . Scrap Searched . | . . . . Spaces Dug . | . . . . Terrain Destroyed . | . . . . Melee . | . . . . Projectile . | . . . . AOE . | . . . . Terrain Rammed . | . . . . Walls Destroyed . | . . . . Machines Disabled . | . . . . Actions | -11 -10 -9 -8 --------- Run | Yrd Mat Mat Mat Total 980 | 57 67 471 385 Wait 24 | . . 13 11 Move 824 | 39 65 414 306 Hop 2 | . . 1 1 Pick Up 47 | 12 2 10 23 Fast Attach 3 | . . 2 1 Attach 30 | 6 . 2 22 Detach 1 | . . . 1 Swap 7 | . . 6 1 Drop 17 | . . 14 3 Fire 14 | . . 8 6 Melee 11 | . . 1 10 Ram . | . . . . Kick . | . . . . Crush . | . . . . Escape Stasis . | . . . . Rewire . | . . . . Trap . | . . . . Miscellaneous . | . . . . Route ------- -11/Scrapyard -10/Materials -9/Materials -8/Materials (discovered 1 exit: [*Fac]) History --------- Turn | Location | Event 34 | -11/Scrapyard | Discovered new exit (range 14) 53 | -11/Scrapyard | Entered Materials 108 | -10/Materials | Discovered new exit (range 7) 114 | -10/Materials | Entered another Materials area 114 | -9/Materials | Evolved 2 slots: Propulsion x1, Utility x1 341 | -9/Materials | Build established: Mutant 347 | -9/Materials | Discovered new exit (range 8) 350 | -9/Materials | Entered another Materials area 350 | -8/Materials | Evolved 2 slots: Propulsion x1, Utility x1 444 | -8/Materials | Lost 4 parts (1p3n) 550 | -8/Materials | Core integrity fell below 50% 553 | -8/Materials | Core integrity fell below 20% 599 | -8/Materials | Lost 16 parts (2p9n2u3w) 625 | -8/Materials | Discovered new exit (range 16) 637 | -8/Materials | Destroyed by Y-45 Defender with Beam Rifle Last Messages --------------- 00569_ Acquired Flak Cannon. 00577_ Acquired Mni. Grenade Launcher. 00578_ K-01 Serf cleans the Electrolysis Chamber. 00586_ Acquired Hardlight Generator. 00592_ Acquired Imp. Signal Interpreter. 00598_ Acquired Mining Claw. 00600_ Acquired Particle Charger. 00608_ K-01 Serf collects debris. 00610_ Acquired Arm. Treads. 00612_ K-01 Serf collects debris. 00613_ Acquired Flak Cannon. 00617_ Connecting with Terminal... 00617_ Current location identified: Materials 00617_ K-01 Serf collects debris. 00617_ Connecting with Terminal... 00619_ G-47 Trooper destroyed. 00620_ Com. Battery destroyed. 00621_ Critical hit (Burn: +37). 00625_ EXIT=FOUND 00633_ Cesium-ion Thruster destroyed. Map ----- +----------------------------------------------------+ | ????????????????????????????????????? | | ????????????????????????????????????? | | ????????????????????????????????????? | | ????????????????????????????????????? | | ????????????????????????????????????? | | ????????????????????????????????????? | | ????????????????????????????????????? | | ????????????????????????????????????? | | ????????????????????????????????????? | | ????????????????????????????????????? | | ????????????????????????????????????? | | ????????????????????????????????????? | | ????????????????????????????????????? | | ????????????????????????????????????? | | ????????????????????????????????????? | | ????????????????????????????????????? | | ????????????????????????????????????? | | ????????????????????????#####???????? | | ????????????????????????# #???????? | | ????????????????????????# < #???????? | | ????????????????????????# #???????? | | ?????????????????##?????# +???????? | | ?????????????????# ???# #???????? | | ?????????????????# "???# #???????? | | ?????????????????# G??# #???????? | | ?????????????????# """?#@ #???????? | | ?????????????????# # #???????? | | ?????????????????# !!! #Y #???????? | | ######???????????# !! + #???????? | | """ #########???# !! # #???????? | | "T" ## ! ] #???# !# +???????? | | ##! #???# """ ?# #???????? | | """##! ! #???# """??# #???????? | | """## #??# ""???#g #???????? | | """?# ! #????? ???# g #???????? | | ???# #???########g g#???????? | | +#########+####### #???????? | | #???????? | | ###+#/#########+## #???????? | | #! # # ########???????? | | # # /=! # #??????????????? | | # """ # =! # #??????????????? | | # """ # =! # #??????????????? | | # """ ###########% #??????????????? | | # # ##[ #??????????????? | | ######## """ ## ##?????????????? | | ???????# """ # #?????????????? | | ???????# """ ! # #?????????????? | | ???????# / #?????????????? | | ???????# ! # #?????????????? | +----------------------------------------------------+ Best States ------------- Heat Dissipation 41 Energy Generation 10 Energy Capacity 325 Matter Stores 300 Matter Capacity 300 Sight Range 16 Terrain Scan Density 10 Utility Shielding 66 Evasion (%) 64 Recoil Reduction 4 Particle Charging 15 Item Schematics ----------------- None Robot Schematics ------------------ None Fabricated ------------ Nothing Alien Tech Used ----------------- None Achievements -------------- None Challenges ------------ None Game ------ Seed IntegratedZhirovLaser Manual? 0 Play Time 00:24:38 Cumulative 52.2 hours Start 2024.06.18 @ 22:37:29 End 2024.06.18 @ 23:37:59 Sessions 1 Manual Loads 0 Difficulty Rogue Special Mode None Game No. 80 Rogue 80 Adventurer 0 Explorer 0 Win Type - Total 0 Types 0/0/0/0/0/0/0/0/0 Lore% 25 Gallery% 41 Achievement% 28 Wizard Run 0 Options --------- Layout 0 ASCII 0 Keyboard 0 Movement Mouse Keybinds 0 Fullscreen 1 Font 24/Smallcaps Map View 76x50 Zoom Use 0% Tactical HUD 1 Map Filters NONE Filters NONE Steam 1 RUN: dd28ff10-6e06-42ad-876b-143c819f5bcd